Cogmind - Beta 13 @@@ ROGUE MODE // 2024.07.29 @ 18:33:24 Player: Norb Result: Destroyed by Y-45 Defender with Heavy Assault Rifle Performance ------------- Evolutions (1) 500 Regions Visited (3) 600 Robots Destroyed (15) 75 Value Destroyed (461) 461 Prototype IDs (0) 0 Alien Tech Used (0) 0 Bonus (0) 0 TOTAL SCORE: 1636 Bonus ------- None Cogmind --------- Core Integrity 0/400 Matter 210/300 Energy 100/100 System Corruption 10% Temperature Cool (9) Movement Core (50) Location -9/Materials Parts ------- > --- POWER (1) -------- (None) > --- PROPULSION (3) --- (None) > --- UTILITY (3) ------ (None) > --- WEAPON (2) ------- (None) > --- INVENTORY (5) ---- Light Ion Engine Peak State ------------ > --- POWER ------------ Ion Engine > --- PROPULSION ------- Flight Unit Flight Unit Flight Unit > --- UTILITY ---------- Small Storage Unit Targeting Computer Hardened Light Armor Plating > --- WEAPON ----------- Assault Rifle Assault Rifle > --- INVENTORY -------- Ion Engine Ion Engine Aluminum Leg Flight Unit Datajack Mining Claw [Rating: 10] Favorites ----------- Power Ion Engine Engine Ion Engine Propulsion Wheel Leg Aluminum Leg Wheel Wheel Flight Unit Flight Unit Utility Small Storage Unit Device Heat Sink Storage Small Storage Unit Processor Targeting Computer Protection Hardened Light Armor Plating Weapon Assault Rifle Energy Cannon Beam Cannon Ballistic Gun Assault Rifle Slashing Weapon Mining Claw Special Melee Weapon Datajack Build | -11 -10 -10 -9 ------- Run | Yrd Mat Min Mat Slots Evolved 2 | . . . 2 Power . | . . . . Propulsion 1 | . . . 1 Utility 1 | . . . 1 Weapon . | . . . . Parts Attached 32 | 6 1 12 13 Power 6 | 1 . 2 3 Engine 6 | 1 . 2 3 Core . | . . . . Reactor . | . . . . Propulsion 10 | 2 . 2 6 Treads . | . . . . Leg 2 | . . 1 1 Wheel 2 | 2 . . . Hover . | . . . . Flight 6 | . . 1 5 Utility 6 | 1 1 2 2 Device 2 | . 1 1 . Storage 2 | 1 . . 1 Processor 1 | . . 1 . Hackware . | . . . . Protection 1 | . . . 1 Artifact . | . . . . Weapon 10 | 2 . 6 2 Energy Gun . | . . . . Energy Cannon 3 | . . 3 . Ballistic Gun 4 | 2 . 2 . Ballistic Cannon . | . . . . Launcher . | . . . . Special Weapon . | . . . . Impact Weapon . | . . . . Slashing Weapon 2 | . . 1 1 Piercing Weapon . | . . . . Special Melee Weapon 1 | . . . 1 Unidentified Prototypes . | . . . . Parts Lost 21 | . . 7 14 Power 4 | . . 2 2 Propulsion 9 | . . 3 6 Utility 3 | . . 1 2 Weapon 5 | . . 1 4 Highest Loss Streak 13 | . . 3 13 To Critical Strikes 1 | . . 1 . Average Slot Usage (%) 87 | . 93 88 85 Engine 12 | . 14 13 10 Leg 2 | . . 3 2 Wheel 10 | . 28 13 . Flight 9 | . . 1 23 Device 6 | . 7 11 . Storage 13 | . 14 14 12 Processor 4 | . . 2 9 Protection 2 | . . . 7 Energy Cannon 6 | . . 14 . Ballistic Gun 16 | . 28 10 18 Slashing Weapon 1 | . . 2 . Naked Turns 3 | . . . 3 Heaviest Build 19 | 14 15 17 19 Greatest Support 20 | 20 20 20 12 Greatest Overweight (x) 5 | . . 5 4 Average Overweight (x) . | . . . . Largest Inventory Capacity 8 | 8 8 8 8 Average Capacity 7 | 5 8 8 7 Most Carried 8 | 3 8 8 8 Average Carried 5 | 1 3 7 6 Final Capacity 8 | 8 8 8 5 Final Carried 8 | 1 8 7 1 Class Distribution -------------------- 100% | Mutant Dominant Class ---------------- Mutant | -10/Materials Mutant | -10/Mines Mutant | -9/Materials Resources | -11 -10 -10 -9 ----------- Run | Yrd Mat Min Mat Matter Collected 559 | 135 79 294 51 Remotely . | . . . . Salvage Created 583 | . 79 439 65 Parts 23 | . 4 15 4 Haulers Intercepted . | . . . . Recyclers Shooed . | . . . . Parts Field Recycled . | . . . . Retrieved Matter . | . . . . Parts Self-Destructed . | . . . . Prevented . | . . . . Kills | -11 -10 -10 -9 ------- Run | Yrd Mat Min Mat Combat Hostiles Destroyed 17 | . 2 13 2 Melee 2 | . . 2 . Guns 8 | . 2 4 2 Cannons 5 | . . 5 . Classes Destroyed 3 | . 1 2 . Swarmer 3 | . . 3 . Grunt 12 | . 2 8 2 Assembled 2 | . . 2 . Best Kill Streak 3 | . 2 3 1 Combat Bots Only 3 | . 2 3 1 Max Kills in Single Turn 1 | . 1 1 1 Gunslinging . | . . . . Exploded . | . . . . Melee 1 | . . 1 . Uniques/NPCs Destroyed . | . . . . Combat | -11 -10 -10 -9 -------- Run | Yrd Mat Min Mat Hostile Shots Fired 224 | . 5 89 130 Missed 64 | . 2 23 39 Damage Taken 2077 | . 33 849 1195 Core 629 | . . 218 411 Absorbed by Shields . | . . . . Core Remaining (%) 56 | 100 . 12 . Volleys Fired 73 | . 8 48 17 Largest 2 | . 2 2 2 Hottest 120 | . 40 120 40 Shots Fired 122 | . 16 75 31 Gun 81 | . 16 34 31 Cannon 41 | . . 41 . Launcher . | . . . . Special . | . . . . Kinetic 81 | . 16 34 31 Thermal 41 | . . 41 . Explosive . | . . . . Electromagnetic . | . . . . Robot Hit Streak 18 | . 6 18 5 Robot Miss Streak 4 | . 4 4 4 Penetration Max . | . . . . Secondary Targets . | . . . . Shots Hit Robots 68 | . 8 49 11 Core Hits 28 | . 5 16 7 Critical Kills 1 | . . 1 . Critical Parts Destroyed . | . . . . Critical Strikes 1 | . . 1 . Meltdown 1 | . . 1 . Melee Attacks 29 | . . 28 1 Impact . | . . . . Slashing 29 | . . 28 1 Piercing . | . . . . Sneak Attacks . | . . . . Combat Hostiles . | . . . . Follow-up Attacks . | . . . . Damage Inflicted 1104 | . 116 823 165 Guns 507 | . 116 253 138 Cannons 453 | . . 453 . Explosions . | . . . . Melee 130 | . . 114 16 Ramming 14 | . . 3 11 Kinetic 507 | . 116 253 138 Thermal 453 | . . 453 . Explosive . | . . . . Electromagnetic . | . . . . Impact . | . . . . Slashing 130 | . . 114 16 Piercing . | . . . . Highest Corruption 10 | . . . 10 Average Corruption 8 | . . . 8 Corruption Purged . | . . . . Corruption Blocked . | . . . . Effects 1 | . . . 1 Message Errors 1 | . . . 1 Overload Shots . | . . . . Overflow Damage 11 | . . 11 . Projectiles 11 | . . 11 . Explosions . | . . . . Melee . | . . . . Knockbacks . | . . . . Impact . | . . . . Kinetic . | . . . . Secondary . | . . . . Self-Inflicted Damage 15 | . . 1 14 Shots 1 | . . . 1 Rammed 4 | . . 1 3 Targets Rammed 4 | . . 1 3 Kicked . | . . . . Crushed . | . . . . Highest Temperature 75 | . . 75 20 Average Temperature 28 | . . 33 6 Received Heat Transfer 627 | . 18 354 255 Siege Activations . | . . . . Robots Corrupted . | . . . . Combat Hostiles . | . . . . Parts Fried . | . . . . Impact Corruptions . | . . . . Robots Melted 2 | . . 2 . Combat Hostiles 2 | . . 2 . Parts Melted 2 | . . 2 . Heat Transferred 962 | . . 962 . Parts Sabotaged . | . . . . Parts Stolen . | . . . . Parts Stripped . | . . . . Power Chain Reactions . | . . . . Alert | -11 -10 -10 -9 ------- Run | Yrd Mat Min Mat Peak Influence 224 | . 102 224 142 Initial 39 | . . 39 20 Average 68 | . 69 77 68 Maximum Alert Level 1 | . . 1 . Low Security (%) 98 | 100 100 96 100 Level 1 1 | . . 3 . Level 2 . | . . . . Level 3 . | . . . . Level 4 . | . . . . Level 5 . | . . . . High Security . | . . . . Max Security . | . . . . Squads Dispatched 4 | . 2 . 2 Investigation . | . . . . Extermination . | . . . . Reinforcement 4 | . 2 . 2 Assault . | . . . . Garrison . | . . . . Intercept . | . . . . Searches Triggered . | . . . . Construction Impeded . | . . . . Haulers Reinforced . | . . . . Active Scanning Responses . | . . . . Cargo Convoy Interrupts . | . . . . Stealth | -11 -10 -10 -9 --------- Run | Yrd Mat Min Mat Distress Signals 1 | . . . 1 Communications Jammed . | . . . . Distress Signals . | . . . . Times Spotted 38 | . 4 16 18 Peak Tracking Total 10 | . 3 4 10 Tactical Retreats 4 | . . 2 2 Traps | -11 -10 -10 -9 ------- Run | Yrd Mat Min Mat Traps Triggered . | . . . . Indirectly . | . . . . Trap Hack Attempts . | . . . . Triggered . | . . . . Disarmed . | . . . . Reprogrammed . | . . . . Reused . | . . . . Traps Extracted . | . . . . Installed . | . . . . Triggered . | . . . . Machines | -11 -10 -10 -9 ---------- Run | Yrd Mat Min Mat Machines Disabled 1 | . . . 1 Max in Single Turn 1 | . . . 1 Machines Repaired . | . . . . Machines Dismantled . | . . . . Machines Sabotaged . | . . . . Overloaded Fab Kills . | . . . . Hacking | -11 -10 -10 -9 --------- Run | Yrd Mat Min Mat Machines Accessed 2 | . 1 . 1 Terminals 2 | . 1 . 1 Fabricators . | . . . . Repair Stations . | . . . . Recycling Units . | . . . . Scanalyzers . | . . . . Garrison Access . | . . . . Total Hacks 5 | . 3 . 2 Successful 2 | . 1 . 1 Failed 3 | . 2 . 1 Catastrophic 1 | . 1 . . Database Lockouts . | . . . . Manual . | . . . . Terminals 5 | . 3 . 2 Fabricators . | . . . . Repair Stations . | . . . . Recycling Units . | . . . . Scanalyzers . | . . . . Garrison Access . | . . . . Terminal Hacks 2 | . 1 . 1 Branch Access Points 1 | . 1 . . Security Status 1 | . . . 1 Fabricator Hacks . | . . . . Repair Station Hacks . | . . . . Recycling Unit Hacks . | . . . . Scanalyzer . | . . . . Garrison Access Hacks . | . . . . Unauthorized Hacks . | . . . . Terminals . | . . . . Fabricators . | . . . . Repair Stations . | . . . . Recycling Units . | . . . . Scanalyzers . | . . . . Garrison Access . | . . . . Data Cores Recovered . | . . . . Used . | . . . . Hacking Detections 1 | . 1 . . Full Trace Events . | . . . . Feedback Events . | . . . . Feedback Blocked . | . . . . Robot Schematics Acquired . | . . . . Robots Built . | . . . . Authchips . | . . . . Time . | . . . . Total Robot Build Rating . | . . . . Part Schematics Acquired . | . . . . Parts Built . | . . . . Authchips . | . . . . Time . | . . . . Total Part Build Rating . | . . . . Parts Repaired . | . . . . Time . | . . . . Parts Recycled . | . . . . Recycled Matter . | . . . . Retrieved Matter . | . . . . Retrieved Components . | . . . . Parts Scanalyzed . | . . . . Part Schematics Acquired . | . . . . Parts Damaged . | . . . . Bothacking | -11 -10 -10 -9 ------------ Run | Yrd Mat Min Mat Used RIF Installer . | . . . . Robots Hacked . | . . . . Non-combat . | . . . . Combat . | . . . . Robot Hacks Applied . | . . . . Relay Couplers Released . | . . . . Fabnet Peak Effective % . | . . . . Robots Rewired . | . . . . Allies Hacked . | . . . . Hacks Repelled . | . . . . Allies | -11 -10 -10 -9 -------- Run | Yrd Mat Min Mat Total Allies . | . . . . Largest Group . | . . . . Highest-Rated Group . | . . . . Highest-Rated Ally . | . . . . Total Orders . | . . . . Ally Attacks . | . . . . Total Damage . | . . . . Kills . | . . . . Allies Corrupted . | . . . . Allies Melted . | . . . . Intel | -11 -10 -10 -9 ------- Run | Yrd Mat Min Mat Robot Analysis Total . | . . . . Derelict Logs Recovered . | . . . . Drone Launches . | . . . . Drone Recoveries . | . . . . Exploration | -11 -10 -10 -9 ------------- Run | Yrd Mat Min Mat Turns Passed 1214 | 69 187 530 428 Spaces Moved 749 | 75 177 224 273 Core 34 | 11 . 14 9 Treads . | . . . . Legs 84 | . . 53 31 Wheels 389 | 64 177 148 . Hover . | . . . . Flight 242 | . . 9 233 Fastest Speed 37 | 50 80 80 37 Average Speed 108 | 75 80 129 118 Slowest Speed 370 | 80 80 300 370 Overloaded Moves . | . . . . Propulsion Burnouts . | . . . . Robots Hopped . | . . . . Cave-ins Triggered . | . . . . Exploration Rate (%) 17 | 4 27 21 16 Regions Visited 3 Branch Regions 1 Pre-discovered Areas . | . . . . Known Exits Taken 1 | . 1 . . Unknown Exits Taken 2 | 1 . 1 . Scrap Searched 1 | . . 1 . Spaces Dug . | . . . . Terrain Destroyed 37 | . . . 37 Melee . | . . . . Projectile . | . . . . AOE 37 | . . . 37 Terrain Rammed . | . . . . Walls Destroyed . | . . . . Machines Disabled . | . . . . Actions | -11 -10 -10 -9 --------- Run | Yrd Mat Min Mat Total 972 | 87 206 333 346 Wait 44 | . 13 10 21 Move 746 | 74 176 223 273 Hop . | . . . . Pick Up 31 | 7 8 8 8 Fast Attach . | . . . . Attach 24 | 6 1 6 11 Detach 2 | . . . 2 Swap 8 | . . 6 2 Drop 9 | . . 3 6 Fire 73 | . 8 48 17 Melee 29 | . . 28 1 Ram 4 | . . 1 3 Kick . | . . . . Crush . | . . . . Escape Stasis . | . . . . Rewire 2 | . . . 2 Trap . | . . . . Miscellaneous . | . . . . Route ------- -11/Scrapyard -10/Materials (discovered 2 exits: *Min x2) -10/Mines -9/Materials History --------- Turn | Location | Event 22 | -11/Scrapyard | Discovered new exit (range 15) 70 | -11/Scrapyard | Entered Materials 202 | -10/Materials | Discovered new exit (range 12) 203 | -10/Materials | Identified exit to Mines 257 | -10/Materials | Entered Mines 300 | -10/Mines | Excavation squad dispatched 300 | -10/Mines | A large section of the Mines collapsed 321 | -10/Mines | Build established: Mutant 498 | -10/Mines | Core integrity fell below 50% 550 | -10/Mines | Excavation squad dispatched 683 | -10/Mines | Core integrity fell below 20% 711 | -10/Mines | Lost 3 parts (1p1u1w) 742 | -10/Mines | Discovered new exit (range 7) 787 | -10/Mines | Entered Materials 787 | -9/Materials | Evolved 2 slots: Propulsion x1, Utility x1 1172 | -9/Materials | System corruption reached 10% 1180 | -9/Materials | Core integrity fell below 50% 1204 | -9/Materials | Core integrity fell below 20% 1215 | -9/Materials | Destroyed by Y-45 Defender with Heavy Assault Rifle Last Messages --------------- 01179_ Hrd. Light Armor Plating destroyed. 01180_ V4M6937CUB&DRQWP4HN :E F 01180_ S-10 Pest destroyed. 01180_ Acquired 20 matter. 01181_ Flight Unit destroyed. 01181_ Acquired Lgt. Ion Engine. 01186_ Ion Engine destroyed. 01188_ T-07 Excavator is excavating. 01189_ O-16 Technician: "IFF HANDSHAKE FAILED. SECURING TERMINAL." 01192_ T-07 Excavator is excavating. 01203_ Acquired Particle Gun. 01205_ Flight Unit destroyed. 01207_ Y-45 Defender destroyed. 01208_ ALERT: Hostiles spotted, dispatching reinforcements to Terminal M011. 01210_ Dropped Ion Engine. 01211_ Dropped Sml. Storage Unit. 01211_ Dropped Particle Gun. 01212_ G-34 Mercenary destroyed. Map ----- +----------------------------------------------------+ | ???? ??????????????????????????????????? | | ?###/#?????????????????????????????????? | | ?# ?????????????????????????????????? | | ?# ?????????????????????????????????? | | ?# ?????????????????????????????????? | | ?? ?????????????????????????????????? | | ### #?????????? ??????????????????????? | | # #????????#? "?????????????????????? | | !# #????????? ?????????????????????? | | + ###??????? ] ?????????????????????? | | # +??????? ?????????????????????? | | ## #??????? ?????????????????????? | | ## ######### ?????????????????????? | | ## + # #????????????????????? | | ## ### + +????????????????????? | | ## #?# # #????????????????????? | | + #?######/## #????????????????????? | | ## #??????# #?# #?????###########????? | | ## #??????# #?# ####### #????? | | ## #?????## ### # # #????? | | #### #?????# = # g #????? | | ???# #?????# [ =!+ b #????? | | ???# #?????# = " !%#Ys #????? | | ???# #?????########%" # #????? | | ???# #????????????## ##[!= #????? | | ???# #?????????????# ##@!s* #????? | | ???# #?????????????# ####Y#######????? | | ???# #?????????????# #??# #??????????? | | ???# #?????????????# #??# #??????????? | | ???# #?????????????# #??# #??????????? | | ???# #?????????????# #### ###????????? | | ???# #?????????????# #????????? | | ???# #???????????? + +????????? | | ???# #??????????? # #????????? | | ???# #?????????? # ### ####????????? | | ???# #???????? ?# #? #???????????? | | ???# #???????####??# #?###???????????? | | ??## ####??????????# #???????????????? | | ### #??????????# #???????????????? | | #??????????# #???????????????? | | T #??????????# #???????????????? | | #??????????+ #???????????????? | | ### #??????????# #???????????????? | | ??###+###??????????# #???????????????? | | ???????????????????# #???????????????? | | ???????????????????# ????????????????? | | ???????????????????? ????????????????? | | ???????????????????????????????????????? | | ???????????????????????????????????????? | | ???????????????????????????????????????? | +----------------------------------------------------+ Best States ------------- Heat Dissipation 39 Energy Generation 10 Energy Capacity 250 Matter Stores 300 Matter Capacity 300 Sight Range 16 Terrain Scan Density 10 Armor Coverage 150 Evasion (%) 62 Targeting Accuracy 5 Item Schematics ----------------- None Robot Schematics ------------------ None Fabricated ------------ Nothing Alien Tech Used ----------------- None Achievements -------------- None Challenges ------------ None Game ------ Seed CoolantImpulseSystem Manual? 0 Play Time 00:15:58 Cumulative 9.6 hours Start 2024.07.29 @ 18:18:56 End 2024.07.29 @ 18:33:24 Sessions 1 Manual Loads 0 Difficulty Rogue Special Mode None Game No. 12 Rogue 12 Adventurer 0 Explorer 0 Win Type - Total 0 Types 0/0/0/0/0/0/0/0/0 Lore% 14 Gallery% 14 Achievement% 15 Wizard Run 0 Options --------- Layout 1 ASCII 0 Keyboard 1 Movement Arrows Keybinds 0 Fullscreen 2 Font 24/Terminus Map View 50x35 Zoom Use 0% Tactical HUD 1 Map Filters NONE Filters NONE Steam 1 RUN: 78b62f9f-4c5e-4ef6-821e-d55745be708d